Cogmind - Beta 9.6 @@@ ROGUE MODE // 2020.05.31 @ 21:34:28 Player: Vectis Result: Self-destructed Performance ------------- Evolutions (3) 1500 Regions Visited (8) 1600 Robots Destroyed (61) 305 Value Destroyed (1581) 1581 Prototype IDs (25) 500 Alien Tech Used (0) 0 Bonus (406) 406 TOTAL SCORE: 5892 Bonus ------- Follower Combat Kills 106 Aligned with FarCom 300 Cogmind --------- Core Integrity 581/700 Matter 300/300 Energy 100/100 System Corruption 3% Temperature Cool (0) Movement Core (100) Ox1 Location -7/Factory Parts ------- > --- POWER (1) -------- (None) > --- PROPULSION (3) --- (None) > --- UTILITY (7) ------ Melee Analysis Suite Hacking Suite Hacking Suite System Shield > --- WEAPON (2) ------- Powered Hammer Power Maul > --- INVENTORY (4) ---- Light Angular Momentum Engine Improved Flight Unit Field Lobotomy Kit Power Maul Peak State ------------ > --- POWER ------------ Improved Deuterium Engine > --- PROPULSION ------- Improved Hover Unit Improved Hover Unit Improved Hover Unit > --- UTILITY ---------- Coolant Injector Large Storage Unit Humpback Advanced Targeting Computer Hacking Suite System Shield > --- WEAPON ----------- Enhanced Autogun Enhanced Autogun > --- INVENTORY -------- Nuclear Core Light Angular Momentum Engine Light Angular Momentum Engine Armored Treads Improved Hover Unit Gravmag System Flight Unit Flight Unit Improved Flight Unit Improved Heat Sink Small Storage Unit Medium Storage Unit High-capacity Matter Pod Advanced Weight Redist. System Advanced Weight Redist. System Melee Analysis Suite Maneuvering Thrusters Hacking Suite Hacking Suite Hacking Suite System Shield Light Assault Rifle Rocket Launcher Field Lobotomy Kit Powered Hammer Power Maul Power Maul [Rating: 42] Favorites ----------- Power Ion Engine Engine Ion Engine Propulsion Light Treads Treads Light Treads Wheel Wheel Hover Unit Improved Hover Unit Utility Small Storage Unit Device Coolant Injector Storage Small Storage Unit Processor Advanced Targeting Computer Hackware Hacking Suite Protection Hardened Medium Armor Plating Weapon Light Assault Rifle Energy Cannon Heavy Particle Cannon Ballistic Gun Light Assault Rifle Ballistic Cannon Light Cannon Launcher Rocket Launcher Impact Weapon Power Maul Build | -11 -10 -10 -9 -9 -9 -8 -8 -7 ------- Run | Scr Mat Min Mat Min Exi Min Mat Fac Slots Evolved 6 | . . . 2 . . . 2 2 Power . | . . . . . . . . . Propulsion 1 | . . . 1 . . . . . Utility 5 | . . . 1 . . . 2 2 Weapon . | . . . . . . . . . Parts Attached 84 | 7 2 4 8 9 3 . 28 23 Power 7 | 1 . 1 . 1 . . 2 2 Engine 7 | 1 . 1 . 1 . . 2 2 Core . | . . . . . . . . . Reactor . | . . . . . . . . . Propulsion 28 | 2 . . 7 . . . 12 7 Treads 21 | 2 . . 5 . . . 12 2 Leg . | . . . . . . . . . Wheel 2 | . . . 2 . . . . . Hover 5 | . . . . . . . . 5 Flight . | . . . . . . . . . Utility 20 | 2 . . 1 1 2 . 4 10 Device 4 | . . . . . . . 1 3 Storage 6 | 2 . . . 1 2 . . 1 Processor 2 | . . . . . . . 1 1 Hackware 5 | . . . . . . . . 5 Protection 3 | . . . 1 . . . 2 . Artifact . | . . . . . . . . . Weapon 29 | 2 2 3 . 7 1 . 10 4 Energy Gun . | . . . . . . . . . Energy Cannon 3 | . . . . . . . 3 . Ballistic Gun 19 | 2 2 3 . 5 1 . 5 1 Ballistic Cannon 2 | . . . . . . . 2 . Launcher 2 | . . . . 2 . . . . Special Weapon . | . . . . . . . . . Impact Weapon 3 | . . . . . . . . 3 Slashing Weapon . | . . . . . . . . . Piercing Weapon . | . . . . . . . . . Special Melee Weapon . | . . . . . . . . . Unidentified Prototypes 3 | . . . . . . . 3 . Parts Lost 13 | . . . 3 . . . 1 9 Power 1 | . . . . . . . . 1 Propulsion 5 | . . . . . . . . 5 Utility 4 | . . . 1 . . . . 3 Weapon 3 | . . . 2 . . . 1 . Highest Loss Streak 9 | . . . 3 . . . 1 9 Average Slot Usage (%) 90 | . 100 100 97 89 85 88 88 91 Engine 9 | . 14 14 11 11 11 11 9 6 Treads 27 | . 28 28 28 33 33 33 26 19 Device 1 | . . . . . . . . 7 Storage 20 | . 28 28 22 26 19 22 18 13 Processor 3 | . . . . . . . 8 6 Hackware 2 | . . . . . . . . 15 Protection 3 | . . . 10 . . . 7 . Energy Cannon 1 | . . . . . . . 4 . Ballistic Gun 16 | . 28 28 21 17 22 22 10 13 Naked Turns . | . . . . . . . . . Heaviest Build 121 | 15 15 15 16 25 105 105 120 121 Greatest Support 63 | 40 40 40 63 63 63 63 63 63 Greatest Overweight (x) 1 | . . . . . 1 1 1 1 Average Overweight (x) . | . . . . . . 1 1 . Largest Inventory Capacity 30 | 8 8 8 8 12 30 30 30 30 Average Capacity 21 | 5 8 8 8 9 26 30 30 27 Most Carried 30 | 5 8 8 8 10 20 23 30 30 Average Carried 19 | 2 7 7 7 8 14 21 29 25 Final Capacity 30 | 8 8 8 8 12 30 30 30 4 Final Carried 29 | 5 8 8 8 9 20 23 29 4 Class Distribution -------------------- 64% | Hauler-Mutant 31% | Mutant Dominant Class ---------------- Mutant | -10/Materials Mutant | -10/Mines Mutant | -9/Materials Mutant | -9/Mines Hauler-Mutant | -9/Exiles Hauler-Mutant | -8/Mines Hauler-Mutant | -8/Materials Hauler-Mutant | -7/Factory Resources | -11 -10 -10 -9 -9 -9 -8 -8 -7 ----------- Run | Scr Mat Min Mat Min Exi Min Mat Fac Matter Collected 1607 | 282 56 72 122 107 40 10 521 397 Remotely . | . . . . . . . . . Salvage Created 2151 | 102 184 119 209 43 . . 1027 467 Parts 146 | 6 11 17 20 4 . . 59 29 Haulers Intercepted 3 | . . . . . . . 3 . Recyclers Shooed 3 | 1 . . 2 . . . . . Parts Field Recycled . | . . . . . . . . . Retrieved Matter . | . . . . . . . . . Parts Self-Destructed . | . . . . . . . . . Prevented . | . . . . . . . . . Kills | -11 -10 -10 -9 -9 -9 -8 -8 -7 ------- Run | Scr Mat Min Mat Min Exi Min Mat Fac Combat Hostiles Destroyed 45 | . 4 8 9 3 . . 13 8 Guns 35 | . 4 8 9 3 . . 4 7 Cannons 9 | . . . . . . . 9 . Classes Destroyed 14 | 2 3 . . 2 . . 6 1 Worker 2 | . 1 . . . . . 1 . Builder 1 | . . . . . . . 1 . Tunneler 1 | 1 . . . . . . . . Hauler 3 | . . . . . . . 3 . Recycler 4 | 1 1 . . . . . 2 . Operator 2 | . . . . . . . 1 1 Watcher 3 | . . . . . . . 3 . Swarmer 18 | . 3 8 6 1 . . . . Grunt 13 | . 1 . 3 . . . 6 3 Duelist 2 | . . . . . . . 1 1 Sentry 8 | . . . . . . . 6 2 Demolisher 1 | . . . . 1 . . . . Programmer 2 | . . . . . . . . 2 Assembled 1 | . . . . 1 . . . . Best Kill Streak 6 | 2 2 3 6 1 . . 3 3 Combat Bots Only 6 | . 2 3 6 1 . . 3 3 Max Kills in Single Turn 2 | 1 1 2 1 1 . . 2 1 Gunslinging 1 | . . 1 . . . . . . Exploded . | . . . . . . . . . Melee . | . . . . . . . . . Uniques/NPCs Destroyed . | . . . . . . . . . Combat | -11 -10 -10 -9 -9 -9 -8 -8 -7 -------- Run | Scr Mat Min Mat Min Exi Min Mat Fac Damage Taken 3137 | . 165 230 584 197 . . 1011 950 Core 348 | . 17 57 46 16 . . 93 119 Absorbed by Shields 22 | . . . . . . . . 22 Core Remaining (%) 84 | 100 . 70 . . . 84 83 . Volleys Fired 197 | 6 20 14 30 11 . . 80 36 Largest 2 | 2 2 2 2 2 . . 2 2 Hottest 98 | 40 40 40 40 43 . . 98 50 Shots Fired 372 | 12 40 28 60 12 . . 148 72 Gun 304 | 12 40 28 60 12 . . 80 72 Cannon 68 | . . . . . . . 68 . Launcher . | . . . . . . . . . Special . | . . . . . . . . . Kinetic 334 | 12 40 28 60 12 . . 110 72 Thermal 35 | . . . . . . . 35 . Explosive . | . . . . . . . . . Electromagnetic 3 | . . . . . . . 3 . Robot Hit Streak 25 | 2 6 8 10 4 . . 25 14 Robot Miss Streak 4 | 1 3 4 4 2 . . 2 4 Penetration Max . | . . . . . . . . . Secondary Targets 4 | . . 2 . . . . . 2 Max Gunslinging Chain 1 | . . 1 . . . . . 1 Shots Hit Robots 277 | 6 26 18 40 8 . . 109 70 Core Hits 114 | 4 11 10 16 4 . . 44 25 Critical Hits 5 | . . . 3 . . . 1 1 Critical Kills 1 | . . . 1 . . . . . Critical Parts Destroyed 4 | . . . 2 . . . 1 1 Melee Attacks 25 | . . . . . . . . 25 Impact 25 | . . . . . . . . 25 Slashing . | . . . . . . . . . Piercing . | . . . . . . . . . Sneak Attacks . | . . . . . . . . . Combat Hostiles . | . . . . . . . . . Follow-up Attacks 2 | . . . . . . . . 2 Damage Inflicted 3837 | 55 193 133 278 52 . . 1971 1155 Guns 2101 | 55 193 133 278 52 . . 686 704 Cannons 1190 | . . . . . . . 1190 . Explosions 95 | . . . . . . . 95 . Melee 451 | . . . . . . . . 451 Ramming . | . . . . . . . . . Kinetic 2455 | 55 193 133 278 52 . . 1040 704 Thermal 870 | . . . . . . . 870 . Explosive . | . . . . . . . . . Electromagnetic 61 | . . . . . . . 61 . Impact 451 | . . . . . . . . 451 Slashing . | . . . . . . . . . Piercing . | . . . . . . . . . Highest Corruption 3 | . . . . . . . . 3 Average Corruption 2 | . . . . . . . . 2 Corruption Purged . | . . . . . . . . . Effects 15 | . . . . . . . . 15 Message Errors 3 | . . . . . . . . 3 Matter Fused 1 | . . . . . . . . 1 Heat Flow Errors 2 | . . . . . . . . 2 Energy Discharges 3 | . . . . . . . . 3 Data Loss (minor) 2 | . . . . . . . . 2 Targeting Errors 4 | . . . . . . . . 4 Overload Shots . | . . . . . . . . . Overflow Damage 19 | . . . . . . . 10 9 Projectiles 10 | . . . . . . . 10 . Explosions . | . . . . . . . . . Melee 9 | . . . . . . . . 9 Knockbacks 1 | . . . . . . . 1 . Impact . | . . . . . . . . . Kinetic 1 | . . . . . . . 1 . Secondary . | . . . . . . . . . Self-Inflicted Damage 99 | . . . . . . . 99 . Shots 2 | . . . . . . . 2 . Rammed . | . . . . . . . . . Targets Rammed . | . . . . . . . . . Kicked . | . . . . . . . . . Crushed . | . . . . . . . . . Highest Temperature 338 | . . . 6 6 . . 338 170 Average Temperature 68 | . . . 3 4 . . 71 55 Received Heat Transfer 672 | . 18 . 198 24 . . 279 153 Effects 2 | . . . . . . . 2 . Interference 2 | . . . . . . . 2 . Siege Activations . | . . . . . . . . . Robots Corrupted . | . . . . . . . . . Combat Hostiles . | . . . . . . . . . Parts Fried 2 | . . . . . . . . 2 Impact Corruptions 1 | . . . . . . . . 1 Robots Melted . | . . . . . . . . . Combat Hostiles . | . . . . . . . . . Parts Melted . | . . . . . . . . . Heat Transferred 1247 | . . . . . . . 1247 . Parts Sabotaged . | . . . . . . . . . Parts Stolen . | . . . . . . . . . Parts Stripped . | . . . . . . . . . Power Chain Reactions 1 | . . . . . . . 1 . Missiles Intercepted . | . . . . . . . . . Alert | -11 -10 -10 -9 -9 -9 -8 -8 -7 ------- Run | Scr Mat Min Mat Min Exi Min Mat Fac Peak Influence 271 | 10 154 136 271 121 . . 245 132 Average Influence 65 | 2 61 58 114 53 . . 78 48 Maximum Alert Level 1 | . . . 1 . . . 1 . Low Security (%) 95 | 100 100 100 71 100 . 100 95 100 Level 1 4 | . . . 28 . . . 4 . Level 2 . | . . . . . . . . . Level 3 . | . . . . . . . . . Level 4 . | . . . . . . . . . Level 5 . | . . . . . . . . . High Security . | . . . . . . . . . Max Security . | . . . . . . . . . Squads Dispatched 11 | . 1 . 2 . . . 3 5 Investigation 4 | . 1 . 1 . . . 2 . Extermination 2 | . . . . . . . . 2 Reinforcement 5 | . . . 1 . . . 1 3 Assault . | . . . . . . . . . Garrison . | . . . . . . . . . Intercept . | . . . . . . . . . Construction Impeded . | . . . . . . . . . Haulers Reinforced . | . . . . . . . . . Stealth | -11 -10 -10 -9 -9 -9 -8 -8 -7 --------- Run | Scr Mat Min Mat Min Exi Min Mat Fac Distress Signals 10 | . 2 . 3 1 . . 4 . Communications Jammed . | . . . . . . . . . Distress Signals . | . . . . . . . . . Times Spotted 90 | . 9 9 23 8 . . 27 14 Peak Tracking Total 9 | . 5 3 9 3 . . 5 3 Tactical Retreats 6 | . 2 1 1 . . . 2 . Traps | -11 -10 -10 -9 -9 -9 -8 -8 -7 ------- Run | Scr Mat Min Mat Min Exi Min Mat Fac Traps Triggered 1 | . 1 . . . . . . . Indirectly . | . . . . . . . . . Trap Hack Attempts . | . . . . . . . . . Triggered . | . . . . . . . . . Disarmed . | . . . . . . . . . Reprogrammed . | . . . . . . . . . Reused . | . . . . . . . . . Traps Extracted . | . . . . . . . . . Installed . | . . . . . . . . . Triggered . | . . . . . . . . . Machines | -11 -10 -10 -9 -9 -9 -8 -8 -7 ---------- Run | Scr Mat Min Mat Min Exi Min Mat Fac Machines Disabled 4 | . . . . . . . 4 . Max in Single Turn 2 | . . . . . . . 2 . Machines Sabotaged . | . . . . . . . . . Garrisons Compromised . | . . . . . . . . . Overloaded Fab Kills . | . . . . . . . . . Fab Network Shutdowns . | . . . . . . . . . Hacking | -11 -10 -10 -9 -9 -9 -8 -8 -7 --------- Run | Scr Mat Min Mat Min Exi Min Mat Fac Machines Accessed 23 | . 3 1 5 . 5 . 7 2 Terminals 14 | . 3 1 3 . . . 5 2 Fabricators . | . . . . . . . . . Repair Stations 3 | . . . 2 . . . 1 . Recycling Units . | . . . . . . . . . Scanalyzers 1 | . . . . . . . 1 . Garrison Access . | . . . . . . . . . Total Hacks 75 | . 9 2 17 . 8 . 29 10 Successful 43 | . 4 1 12 . 8 . 13 5 Failed 32 | . 5 1 5 . . . 16 5 Catastrophic 4 | . 1 1 1 . . . . 1 Database Lockouts . | . . . . . . . . . Manual 50 | . 8 2 10 . 1 . 20 9 Terminals 56 | . 9 2 11 . . . 24 10 Fabricators . | . . . . . . . . . Repair Stations 9 | . . . 6 . . . 3 . Recycling Units . | . . . . . . . . . Scanalyzers 2 | . . . . . . . 2 . Garrison Access . | . . . . . . . . . Terminal Hacks 19 | . 1 1 1 . 8 . 6 2 Record 7 | . . . . . 7 . . . Part Schematic 1 | . . . . . . . 1 . Robot Schematic 1 | . . . . . . . 1 . Branch Access Points 1 | . . . 1 . . . . . Terminal Index 1 | . . . . . . . . 1 Scanalyzer Index 1 | . . . . . . . 1 . Unreport Threat 5 | . 1 1 . . . . 3 . Locate Traps 1 | . . . . . . . . 1 EX-Prototype ID Bank 1 | . . . . . 1 . . . Fabricator Hacks . | . . . . . . . . . Repair Station Hacks 7 | . . . 5 . . . 2 . Scan Component 4 | . . . 3 . . . 1 . Repair 3 | . . . 2 . . . 1 . Recycling Unit Hacks . | . . . . . . . . . Scanalyzer 1 | . . . . . . . 1 . Insert Component 1 | . . . . . . . 1 . Garrison Access Hacks . | . . . . . . . . . Unauthorized Hacks 16 | . 3 . 6 . . . 4 3 Terminals 16 | . 3 . 6 . . . 4 3 Track 2 | . . . 2 . . . . . Botnet 11 | . 2 . 3 . . . 4 2 Operators 3 | . 1 . 1 . . . . 1 Fabricators . | . . . . . . . . . Repair Stations . | . . . . . . . . . Recycling Units . | . . . . . . . . . Scanalyzers . | . . . . . . . . . Garrison Access . | . . . . . . . . . Data Cores Recovered . | . . . . . . . . . Used . | . . . . . . . . . Hacking Detections 15 | . 3 . 4 . . . 6 2 Full Trace Events 4 | . . . 1 . . . 3 . Feedback Events . | . . . . . . . . . Feedback Blocked . | . . . . . . . . . Robot Schematics Acquired 1 | . . . . . . . 1 . Robots Built . | . . . . . . . . . Matter . | . . . . . . . . . Time . | . . . . . . . . . Total Robot Build Rating . | . . . . . . . . . Part Schematics Acquired 1 | . . . . . . . 1 . Parts Built . | . . . . . . . . . Matter . | . . . . . . . . . Time . | . . . . . . . . . Total Part Build Rating . | . . . . . . . . . Parts Repaired 3 | . . . 2 . . . 1 . Time 84 | . . . 52 . . . 32 . Parts Recycled . | . . . . . . . . . Recycled Matter . | . . . . . . . . . Retrieved Matter . | . . . . . . . . . Retrieved Components . | . . . . . . . . . Parts Scanalyzed 1 | . . . . . . . 1 . Part Schematics Acquired . | . . . . . . . . . Parts Damaged . | . . . . . . . . . Bothacking | -11 -10 -10 -9 -9 -9 -8 -8 -7 ------------ Run | Scr Mat Min Mat Min Exi Min Mat Fac Used RIF Installer . | . . . . . . . . . Robots Hacked . | . . . . . . . . . Non-combat . | . . . . . . . . . Combat . | . . . . . . . . . Robot Hacks Applied . | . . . . . . . . . Relay Couplers Released . | . . . . . . . . . Robots Rewired . | . . . . . . . . . Allies Hacked . | . . . . . . . . . Hacks Repelled . | . . . . . . . . . Allies | -11 -10 -10 -9 -9 -9 -8 -8 -7 -------- Run | Scr Mat Min Mat Min Exi Min Mat Fac Total Allies 4 | . . . . 4 . . . . Largest Group 3 | . . . . 3 1 . . . Highest-Rated Group 63 | . . . . 63 31 . . . Highest-Rated Ally 31 | . . . . 31 31 . . . Total Orders . | . . . . . . . . . Ally Attacks 31 | . . . . 31 . . . . Total Damage 264 | . . . . 264 . . . . Kills 4 | . . . . 4 . . . . Allies Corrupted . | . . . . . . . . . Allies Melted . | . . . . . . . . . Intel | -11 -10 -10 -9 -9 -9 -8 -8 -7 ------- Run | Scr Mat Min Mat Min Exi Min Mat Fac Robot Analysis Total . | . . . . . . . . . Derelict Logs Recovered 2 | . . . . 2 . . . . Drone Launches . | . . . . . . . . . Drone Recoveries . | . . . . . . . . . Exploration | -11 -10 -10 -9 -9 -9 -8 -8 -7 ------------- Run | Scr Mat Min Mat Min Exi Min Mat Fac Turns Passed 7523 | 130 384 627 512 775 1150 144 2378 1423 Spaces Moved 3795 | 66 195 359 244 461 639 79 995 757 Core 6 | 6 . . . . . . . . Treads 3603 | 60 195 359 215 461 639 79 995 600 Legs . | . . . . . . . . . Wheels 29 | . . . 29 . . . . . Hover 157 | . . . . . . . . 157 Flight . | . . . . . . . . . Fastest Speed 50 | 50 160 160 80 160 160 180 180 52 Average Speed 166 | 150 160 160 150 160 177 180 180 153 Slowest Speed 183 | 160 160 160 160 160 180 180 183 180 Overloaded Moves . | . . . . . . . . . Propulsion Burnouts . | . . . . . . . . . Robots Hopped . | . . . . . . . . . Cave-ins Triggered . | . . . . . . . . . Exploration Rate (%) 50 | 4 44 82 24 98 92 26 61 19 Regions Visited 8 Branch Regions 4 Pre-discovered Areas 2 | . . . . 1 1 . . . Known Exits Taken 2 | . . . 1 . . . 1 . Unknown Exits Taken 6 | 1 1 1 . 1 1 1 . . Scrap Searched 3 | . . . . 2 . 1 . . Spaces Dug 4 | . . . . . . . 1 3 Terrain Destroyed 30 | . . . . . . . 27 3 Melee 3 | . . . . . . . . 3 Projectile 3 | . . . . . . . 3 . AOE 24 | . . . . . . . 24 . Actions | -11 -10 -10 -9 -9 -9 -8 -8 -7 --------- Run | Scr Mat Min Mat Min Exi Min Mat Fac Total 4685 | 84 236 394 341 489 655 81 1452 953 Wait 447 | 1 12 8 53 . . . 298 75 Move 3787 | 65 194 358 243 460 638 78 994 757 Hop . | . . . . . . . . . Pick Up 62 | 5 5 3 3 2 10 3 23 8 Fast Attach 29 | 7 . . 3 5 2 . 7 5 Attach 24 | . . . 3 1 1 . 5 14 Detach 2 | . . . . 1 1 . . . Swap 31 | . 2 4 2 3 . . 16 4 Drop 85 | . 3 7 4 6 3 . 29 33 Fire 197 | 6 20 14 30 11 . . 80 36 Melee 21 | . . . . . . . . 21 Ram . | . . . . . . . . . Kick . | . . . . . . . . . Crush . | . . . . . . . . . Escape Stasis . | . . . . . . . . . Rewire . | . . . . . . . . . Trap . | . . . . . . . . . Miscellaneous . | . . . . . . . . . Route ------- -11/Scrapyard -10/Materials -10/Mines -9/Materials -9/Mines (discovered 3 exits: *Mat x2 / *Exi) -9/Exiles (discovered 2 exits: [*Min x2]) -8/Mines -8/Materials (discovered 2 exits: *Fac x2) -7/Factory History --------- Turn | Location | Event 4 | -11/Scrapyard | Discovered new exit (range 15) 131 | -11/Scrapyard | Entered Materials 310 | -10/Materials | Build established: Mutant 465 | -10/Materials | Discovered new exit (range 16) 515 | -10/Materials | Entered Mines 1117 | -10/Mines | Discovered new exit (range 5) 1142 | -10/Mines | Entered Materials 1142 | -9/Materials | Evolved 2 slots: Propulsion x1, Utility x1 1183 | -9/Materials | Repaired Lgt. Treads? 1504 | -9/Materials | Repaired Lgt. Treads 1591 | -9/Materials | Identified exit to Mines 1654 | -9/Materials | Entered Mines 1663 | -9/Mines | Assisted by bots powering up and referring to "LRC-V3" 1664 | -9/Mines | Assembled infested the area 1680 | -9/Mines | Lost 3 parts (1u2w) 1757 | -9/Mines | Learned 4 Materials zone layouts 1839 | -9/Mines | Discovered new exit (range 9) 1848 | -9/Mines | Received a Rocket Launcher from a helpful Derelict 1940 | -9/Mines | Learned location of 1 exit from Lower Caves 1963 | -9/Mines | Escorted by a lone wolf Derelict 1983 | -9/Mines | Learned location of Storage (-7) 2383 | -9/Mines | Discovered new exit (range 11) 2421 | -9/Mines | Deemed a non-threat by the Exiles lab entrance 2423 | -9/Mines | Discovered new exit (range 5) 2429 | -9/Mines | Entered Exiles 2429 | -9/Exiles | Accompanied by 1 ally 2473 | -9/Exiles | Met 8R-AWN 2493 | -9/Exiles | Met EX-HEX 2645 | -9/Exiles | Visited The Gauntlet 2796 | -9/Exiles | Met EX-DEC 2840 | -9/Exiles | Build established: Hauler-Mutant 2841 | -9/Exiles | Learned location of Zion (-6) 3010 | -9/Exiles | Met EX-BIN 3036 | -9/Exiles | Aligned with FarCom system 3037 | -9/Exiles | Given EX-Vault access code 3079 | -9/Exiles | Opened EX-Vault 3090 | -9/Exiles | Found Field Lobotomy Kit 3173 | -9/Exiles | Warned to stay clear of 0b10 Research branches 3331 | -9/Exiles | Discovered new exit (range 14) 3554 | -9/Exiles | Discovered new exit (range 15) 3579 | -9/Exiles | Left Exiles lab with Field Lobotomy Kit 3579 | -9/Exiles | Entered Mines 3710 | -8/Mines | Discovered new exit (range 5) 3723 | -8/Mines | Entered Materials 3723 | -8/Materials | Evolved 2 slots: Utility x2 3724 | -8/Materials | Identified exit to Factory 5101 | -8/Materials | Repaired Imp. Treads 5947 | -8/Materials | Discovered exit to Factory (range 11) 6101 | -8/Materials | Entered Factory 6101 | -7/Factory | Evolved 2 slots: Utility x2 7524 | -7/Factory | Self-destructed Last Messages --------------- 07473_ Maneuvering Thrusters destroyed. 07481_ System corrupted: Powered Hammer targeting data glitched. 07490_ Destroyed Imp. Heat Sink. 07490_ Y-54 Guardian system corrupted by crushing effect. 07491_ Y-54 Guardian system terminally corrupted. 07491_ Imp. Deuterium Engine fried. 07491_ Imp. Heat Sink fried. 07494_ Acquired 10 matter. 07494_ Hacking Suite destroyed. 07494_ Imp. Hover Unit destroyed. 07507_ Penetrated by Slug. 07507_ Imp. Hover Unit destroyed. 07508_ Dropped Med. Storage Unit. 07510_ Penetrated by Slug. 07513_ Imp. Hover Unit destroyed. 07513_ Lgt. Angular Momentum Engine destroyed. 07520_ Penetrated by Slug. 07523_ Gravmag System destroyed. 07523_ System Shield destroyed. 07524_ X&1CQFILPGATY